fUST/lending_fUST_20250327
["ID","MTS","AMOUNT","RATE_DAILY","PERIOD"]
[356732113,1743061846764,-418.47884548,0.00021016,2]
[356732114,1743061846775,-151.0,0.00021084,2]
[356732115,1743061846784,-600.0,0.00021084,2]
[356732116,1743061846795,-500.0,0.00021095,2]
[356732117,1743061846804,-194.03246674,0.00021095,2]
[356732118,1743061846814,-214.6927605,0.00021095,2]
[356732119,1743061846823,-500.0,0.00021095,2]
[356732120,1743061846833,-500.0,0.00021095,2]
[356732121,1743061846843,-366.88162317,0.00021095,2]
[356732122,1743061846854,-195.09676219,0.00021095,2]
[356732123,1743061846863,-24900.0,0.00021096,2]
[356732124,1743061846872,-622.2,0.00021139,2]
[356732125,1743061846882,-379.74899999,0.0002115,2]
[356732126,1743061846891,-645.2214,0.00021194,2]
[356732127,1743061846900,-500.0,0.000212,2]
[356732128,1743061846909,-161.26345491,0.000212,2]
[356732129,1743061846918,-500.0,0.000212,2]
[356732130,1743061846928,-500.0,0.000212,2]
[356732131,1743061846937,-500.0,0.000212,2]
[356732132,1743061846947,-338.87516497,0.000212,2]
[356732133,1743061846956,-500.99111064,0.000212,2]
[356732134,1743061846965,-500.0,0.000212,2]
[356732135,1743061846975,-500.0,0.000212,2]
[356732136,1743061846984,-500.0,0.000212,2]
[356732137,1743061846993,-669.0945918,0.00021249,2]
[356732138,1743061847003,-500.50027323,0.0002125,2]
[356732139,1743061847012,-500.0,0.0002125,2]
[356732140,1743061847021,-500.0,0.00021292,2]
[356732141,1743061847030,-500.0,0.00021292,2]
[356732142,1743061847039,-500.0,0.00021292,2]
[356732143,1743061847049,-500.0,0.00021292,2]
[356732144,1743061847059,-503.22524085,0.00021292,2]
[356732145,1743061847068,-500.0,0.00021292,2]
[356732146,1743061847078,-693.8510917,0.00021304,2]
[356732147,1743061847087,-193.0,0.00021315,2]
[356732148,1743061847096,-151.0,0.00021325,2]
[356732149,1743061847105,-501.14723622,0.00021346,2]
[356732150,1743061847115,-600.90452438,0.00021346,2]
[356732151,1743061847125,-719.52358209,0.00021359,2]
[356732152,1743061847134,-746.14595463,0.00021414,2]
[356732153,1743061847144,-647.17,0.00021448,3]
[356732154,1743061847153,-500.0,0.00021458,2]
[356732155,1743061847163,-500.0,0.00021458,2]
[356732156,1743061847172,-500.41841725,0.00021458,2]
[356732157,1743061847182,-500.0,0.00021458,2]
[356732158,1743061847191,-773.75335495,0.00021469,2]
[356732159,1743061847201,-802.38222908,0.00021524,2]
[356732160,1743061847210,-215.71,0.00021545,3]
[356732161,1743061847219,-1300.3939585,0.00021555,3]
[356732162,1743061847230,-832.07037156,0.00021579,2]
[356732163,1743061847241,-307.587,0.00021632,2]
[356732164,1743061847251,-862.8569753,0.00021634,2]
[356732165,1743061847261,-894.78268339,0.00021689,2]
[356732166,1743061847271,-1000.0,0.00021741,2]
[356732167,1743061847281,-927.88964268,0.00021744,2]
[356732168,1743061847291,-246.0,0.00021795,2]
[356732169,1743061847301,-962.22155946,0.00021799,2]
[356732170,1743061847311,-997.82375716,0.00021854,2]
[356732171,1743061847321,-151.0,0.00021873,2]
[356732172,1743061847523,-156.210119,0.00021908,4]
[356732173,1743061847544,-981.19677849,0.00021909,2]
[356732174,1743061847559,-53.54645768,0.00021909,2]
[356732175,1743061847569,-226.755125,0.00021918,2]
[356732176,1743061847580,-1073.02873591,0.00021964,2]
[356732177,1743061847589,-1112.73079914,0.00022019,2]
[356732178,1743061847599,-379.74899998,0.00022038,2]
[356732179,1743061847611,-1153.9018387,0.00022074,2]
[356732180,1743061847621,-1800.0,0.00022129,2]
[356732181,1743061847630,-431.43,0.000222,3]
[356732182,1743061847640,-1300.3939585,0.0002221,3]
[356732183,1743061847650,-862.86,0.00022277,3]
[356732184,1743061847661,-304.0,0.00022285,2]
[356732185,1743061847670,-1725.71,0.00022287,3]
[356732186,1743061847681,-151.0,0.00022297,7]
[356732187,1743061847691,-151.0,0.00022297,7]
[356732188,1743061847701,-150.0,0.00022297,2]
[356732189,1743061847711,-541.0,0.00022297,2]
[356732190,1743061847720,-2263.0,0.00022297,2]
[356732191,1743061847729,-1914.0,0.00022297,2]
[356732192,1743061847739,-5114.83803831,0.0002234,3]
[356732193,1743061847748,-151.0,0.00022421,2]
[356732194,1743061847757,-600.0,0.00022443,2]
[356732195,1743061847767,-500.0,0.0002245,2]
[356732196,1743061847776,-500.0,0.0002245,2]
[356732197,1743061847786,-502.02686885,0.0002245,2]
[356732198,1743061847795,-500.0,0.00022467,2]
[356732199,1743061847804,-420.0,0.00022579,2]
[356732200,1743061847814,-156.210119,0.00022656,4]
[356732201,1743061847824,-500.37801143,0.0002276,2]
[356732202,1743061847833,-1300.3939585,0.00022866,4]
[356732203,1743061847843,-431.42,0.00022915,3]
[356732204,1743061847853,-379.74899998,0.00022925,2]
[356732205,1743061847863,-151.0,0.00022969,2]
[356732206,1743061847872,-418.47884548,0.00023,3]
[356732207,1743061847882,-265.7421567,0.00023239,2]
[356732208,1743061847892,-151.0,0.00023239,7]
[356732209,1743061847901,-151.0,0.00023239,7]
[356732210,1743061847911,-1779.8450637,0.00023433,2]
[356732211,1743061847921,-183.706,0.00023456,3]
[356732212,1743061847930,-3451.42,0.00023511,3]
[356732213,1743061847939,-151.0,0.00023517,2]
[356732214,1743061847948,-1300.3939585,0.00023521,4]
[356732215,1743061847958,-702.94635868,0.00023542,2]
[356732216,1743061847968,-862.86,0.0002357,3]
[356732217,1743061847977,-1725.72,0.00023647,3]
[356732218,1743061847986,-3451.42,0.00023657,3]
[356732219,1743061847996,-379.74899998,0.00023813,2]
[356732220,1743061848006,-168.5774753,0.00023936,2]
[356732221,1743061848016,-534.89906618,0.00024,4]
[356732222,1743061848026,-151.0,0.00024065,2]
[356732223,1743061848035,-1043.7907999,0.00024152,2]
[356732224,1743061848045,-0.96601977,0.00024176,5]
[356732241,1743062830526,-161.71904,0.00010959,2]
[356732242,1743062830559,-161.71904,0.00016438,2]
[356732243,1743062830588,-300.0,0.00019875,2]
[356732244,1743062830618,-9781.68131047,0.00019876,2]
[356732300,1743063038158,-218.31868953,0.00019876,2]
[356732301,1743063038169,-250.137054,0.00019913,2]
[356732302,1743063038180,-204.0825836,0.00019979,2]
[356732303,1743063038190,-1694.5129239,0.00020072,2]
[356732304,1743063038199,-238.4373174,0.00020258,2]
[356732305,1743063038208,-300.0,0.00020652,2]
[356732306,1743063038219,-5000.0,0.00020653,2]
[356732307,1743063038229,-500.0,0.00020653,2]
[356732308,1743063038239,-223.30884137,0.00020653,2]
[356732309,1743063038249,-500.0,0.00020998,2]
[356732310,1743063038258,-500.0,0.00020998,2]
[356732311,1743063038267,-500.0,0.00020998,2]
[356732312,1743063038278,-460.35498988,0.00020998,2]
[356732313,1743063038287,-20000.0,0.00020999,2]
[356732314,1743063038299,-9725.0,0.00021,2]
[356732317,1743063038310,-1334.88379781,0.00021127,2]
[356732320,1743063038319,-600.0,0.00021172,2]
[356732323,1743063038329,-151.0,0.00021172,2]
[356732326,1743063038339,-151.41,0.00021183,2]
[356732329,1743063038349,-23692.0842911,0.00021184,2]
[356732332,1743063038361,-1207.9157089,0.00021184,2]
[356732334,1743063038371,-622.2,0.00021227,2]
[356732336,1743063038381,-500.0,0.00021243,2]
[356732338,1743063038391,-182.05600821,0.00021243,2]
[356732340,1743063038402,-500.0,0.00021243,2]
[356732342,1743063038411,-500.0,0.00021243,2]
[356732344,1743063038421,-2046.67085674,0.00021244,2]
[356732345,1743063038431,-160.0,0.00021244,2]
[356732346,1743063038441,-834.95724862,0.00021244,2]
[356732347,1743063038451,-418.47884548,0.00021244,2]
[356732348,1743063038460,-645.2214,0.00021282,2]
[356732349,1743063038469,-365.6757091,0.00021296,2]
[356732350,1743063038479,-669.0945918,0.00021337,2]
[356732351,1743063038488,-189.87449999,0.00021347,2]
[356732352,1743063038498,-693.8510917,0.00021392,2]
[356732353,1743063038507,-500.0,0.000214,2]
[356732354,1743063038518,-500.0,0.000214,2]
[356732355,1743063038528,-719.52358209,0.00021447,2]
[356732356,1743063038537,-501.72534456,0.00021462,2]
[356732357,1743063038547,-500.0,0.00021462,2]
[356732358,1743063038557,-500.0,0.00021462,2]
[356732359,1743063038567,-500.0,0.00021462,2]
[356732360,1743063038576,-500.0,0.00021485,2]
[356732361,1743063038586,-500.0,0.00021485,2]
[356732362,1743063038596,-746.14595463,0.00021502,2]
[356732363,1743063038606,-500.0,0.00021543,2]
[356732364,1743063038615,-500.0,0.00021543,2]
[356732365,1743063038625,-500.0,0.00021543,2]
[356732366,1743063038635,-500.0,0.00021543,2]
[356732367,1743063038643,-500.0,0.00021543,2]
[356732368,1743063038653,-451.74505714,0.00021543,2]
[356732369,1743063038663,-773.75335495,0.00021557,2]
[356732370,1743063038672,-13354.2852252,0.00021612,2]
[356732371,1743063038682,-263.942721,0.0002172,2]
[356732372,1743063038692,-500.0,0.0002175,2]
[356732373,1743063038702,-500.0,0.00021778,2]
[356732374,1743063038711,-161.71904,0.00021918,2]
[356732375,1743063038722,-150.72375002,0.00021925,2]
[356732376,1743063038731,-156.210119,0.00022072,4]
[356732377,1743063038741,-1360.24,0.00022187,3]
[356732378,1743063038750,-680.12,0.00022187,3]
[356732379,1743063038759,-340.06,0.00022187,3]
[356732380,1743063038772,-170.03,0.00022187,3]
[356732381,1743063038781,-510.1,0.00022187,3]
[356732382,1743063038791,-5343.570507,0.00022197,2]
[356732383,1743063038800,-150.0,0.00022297,2]
[356732384,1743063038810,-150.0,0.00022297,2]
[356732385,1743063038819,-541.0,0.00022297,2]
[356732386,1743063038829,-2263.0,0.00022297,2]
[356732387,1743063038839,-1914.0,0.00022297,2]
[356732388,1743063038849,-1769.8752112,0.00022311,2]
[356732389,1743063038858,-783.94009433,0.00022368,2]
[356732390,1743063038868,-420.0,0.00022473,2]
[356732391,1743063038878,-600.0,0.00022496,2]
[356732392,1743063038887,-156.210119,0.00022848,4]
[356732393,1743063038897,-834.95724862,0.00022972,3]
[356732394,1743063038907,-151.0,0.00022972,7]
[356732395,1743063038916,-151.0,0.00022972,7]
[356732396,1743063038927,-500.0,0.000233,2]
[356732397,1743063038937,-183.706,0.00023547,4]
[356732398,1743063038946,-2720.48,0.00023557,3]
[356732399,1743063038956,-1360.24,0.00023557,3]
[356732400,1743063038970,-680.12,0.00023557,3]
[356732401,1743063038980,-340.06,0.00023557,3]
[356732402,1743063038990,-1334.88379777,0.00023809,2]
[356732403,1743063039000,-600.0,0.00023896,2]
[356732404,1743063039010,-205485.0,0.00024,2]
[356732405,1743063039022,-156.0,0.00024,2]
[356732406,1743063039032,-600.0,0.0002402,2]
[356732407,1743063039043,-782.8430999,0.00024152,2]
[356732408,1743063039053,-587.0,0.00024454,2]
[356732409,1743063039062,-189.87449999,0.000246,2]
[356732410,1743063039072,-152.16840044,0.000247,2]
[356732411,1743063039082,-190.52046791,0.000247,2]
[356732412,1743063039091,-322000.0,0.000247,2]
[356732413,1743063039101,-151.0,0.000247,7]
[356732414,1743063039110,-151.0,0.000247,7]
[356732415,1743063039259,-12018.551437,0.0002479,2]
[356732416,1743063039270,-7240.8902469,0.00024799,8]
[356732417,1743063039280,-3261.66360109,0.000248,2]
[356732418,1743063039290,-150.0,0.000248,5]
[356732419,1743063039300,-151.0,0.000248,7]
[356732420,1743063039310,-220.553942,0.000248,7]
[356732421,1743063039322,-500.0,0.00024873,2]
[356732422,1743063039332,-500.0,0.00024873,2]
[356732423,1743063039342,-500.0,0.00024873,2]
[356732424,1743063039351,-500.0,0.00024873,2]
[356732425,1743063039361,-500.0,0.00024873,2]
[356732426,1743063039371,-504.45977196,0.00024873,2]
[356732427,1743063039381,-500.0,0.00024873,2]
[356732428,1743063039391,-500.0,0.00024873,2]
[356732429,1743063039400,-500.0,0.00024873,2]
[356732430,1743063039410,-500.0,0.00024873,2]
[356732431,1743063039419,-500.0,0.00024873,2]
[356732432,1743063039429,-500.0,0.00024873,2]
[356732433,1743063039438,-500.0,0.00024873,2]
[356732434,1743063039448,-172.571642,0.00024887,2]
[356732435,1743063039457,-150.595953,0.00024887,2]
[356732436,1743063039467,-223.53867029,0.00024899,2]
[356732437,1743063039476,-151.0,0.000249,7]
[356732438,1743063039485,-367928.50377768,0.000249,2]
[356732439,1743063039499,-44596.75877602,0.000249,2]
[356732440,1743063039511,-32564.27075148,0.000249,2]
[356732463,1743063040515,-842.54343012,0.000219,3]
[356732464,1743063040529,-410.79707206,0.000219,3]
[356732465,1743063040539,-1253.34050202,0.00022521,4]
[356732466,1743063040549,-1253.34050202,0.00023141,4]
[356732467,1743063040559,-1253.34050202,0.00023762,4]
[356732468,1743063040568,-1253.34050202,0.00024383,5]
[356732469,1743063040578,-11288.76512078,0.000249,2]
[356732470,1743063040598,-382.68,0.000249,2]
[356732471,1743063040611,-530.07198566,0.000249,2]
[356732477,1743063043451,-12309.99999272,0.000249,2]
[356732478,1743063043505,-890.0,0.000249,2]
[356732504,1743064037091,-172.43639,0.00010959,2]
[356732505,1743064037114,-300.0,0.00012499,2]
[356732506,1743064037135,-4729.77526074,0.000125,2]
[356732560,1743064238406,-300.0,0.00012499,2]
[356732561,1743064238417,-18522.75332282,0.000125,2]
[356732562,1743064238427,-1181.33122753,0.000125,2]
[356732563,1743064238437,-169.33,0.00013699,2]
[356732564,1743064238447,-169.33,0.00013699,2]
[356732565,1743064238457,-169.33,0.00013699,2]
[356732567,1743064238467,-169.33,0.00013699,2]
[356732569,1743064238477,-169.33,0.00013699,2]
[356732571,1743064238486,-169.35843556,0.00013699,2]
[356732572,1743064238496,-420.0,0.00013714,2]
[356732573,1743064238506,-587.0,0.00015048,2]
[356732574,1743064238517,-250.0,0.0001524,2]
[356732575,1743064238527,-500.0,0.00016508,2]
[356732576,1743064238538,-500.0,0.00016508,2]
[356732577,1743064238554,-500.0,0.00016508,2]
[356732578,1743064238564,-500.0,0.00016508,2]
[356732579,1743064238579,-500.0,0.00016508,2]
[356732580,1743064238589,-500.0,0.00016508,2]
[356732581,1743064238752,-424.35338803,0.00016508,2]
[356732582,1743064238763,-500.0,0.00016508,2]
[356732583,1743064238772,-500.0,0.00016508,2]
[356732584,1743064238785,-500.0,0.00016508,2]
[356732585,1743064238795,-500.0,0.00016508,2]
[356732586,1743064238804,-500.0,0.00016508,2]
[356732587,1743064238814,-650.0,0.00016508,2]
[356732588,1743064238823,-500.0,0.00016508,2]
[356732589,1743064238833,-3209.86920388,0.0001651,2]
[356732590,1743064238842,-823.0,0.00016511,2]
[356732591,1743064238851,-160.3553685,0.00016871,2]
[356732592,1743064238860,-502.32111067,0.00016871,2]
[356732593,1743064238870,-269.46126553,0.00016871,2]
[356732594,1743064238879,-500.0,0.00016871,2]
[356732595,1743064238888,-500.0,0.00016871,2]
[356732596,1743064238898,-503.66860046,0.00016871,2]
[356732597,1743064238908,-9694.633183,0.00016916,2]
[356732598,1743064238917,-500.0,0.00017089,2]
[356732599,1743064238927,-500.0,0.00017089,2]
[356732600,1743064238937,-159.92363867,0.00017089,2]
[356732601,1743064238947,-154.45849218,0.00017191,2]
[356732602,1743064238957,-156.11112795,0.00017191,2]
[356732603,1743064238966,-504.34262451,0.00017191,2]
[356732604,1743064238976,-503.84174799,0.00017191,2]
[356732605,1743064238986,-505.57082663,0.00017191,2]
[356732606,1743064238995,-441.12418669,0.00017191,2]
[356732607,1743064239005,-500.0,0.00017191,2]
[356732608,1743064239016,-500.0,0.00017191,2]
[356732609,1743064239026,-500.0,0.00017191,2]
[356732610,1743064239035,-345.21088384,0.00017191,2]
[356732611,1743064239045,-504.67716319,0.00017191,2]
[356732612,1743064239054,-500.0,0.00017191,2]
[356732613,1743064239064,-500.0,0.00017191,2]
[356732614,1743064239074,-500.0,0.00017191,2]
[356732615,1743064239083,-500.97808808,0.00017191,2]
[356732616,1743064239093,-1044.45041835,0.000174,2]
[356732617,1743064239102,-1044.45041835,0.000174,2]
[356732618,1743064239112,-1044.45041835,0.000174,2]
[356732619,1743064239122,-1044.45041835,0.000174,2]
[356732620,1743064239131,-503.78763,0.0001745,2]
[356732621,1743064239141,-500.0,0.0001745,2]
[356732622,1743064239150,-500.0,0.0001745,2]
[356732623,1743064239160,-1044.45041835,0.00017486,2]
[356732624,1743064239171,-516.6360008,0.00018014,2]
[356732625,1743064239180,-188.0,0.00018116,2]
[356732626,1743064239190,-596.51252271,0.00018383,2]
[356732627,1743064239202,-447.93789564,0.00018383,2]
[356732628,1743064239212,-14.89899025,0.00019178,2]
[356732629,1743064239232,-157.53739975,0.00019178,2]
[356732630,1743064239242,-379.43905035,0.00019279,2]
[356732653,1743064240741,-665.011368,0.00019279,2]
[356732654,1743064240751,-1125.86681727,0.00019785,2]
[356732655,1743064240761,-193.67288375,0.00019795,2]
[356732656,1743064240771,-500.0,0.00019795,2]
[356732657,1743064240782,-500.0,0.00019795,2]
[356732658,1743064240792,-408.94551253,0.00019795,2]
[356732659,1743064240802,-24900.0,0.00019796,2]
[356732660,1743064240811,-216.54445897,0.00020076,2]
[356732661,1743064240822,-1044.45041835,0.00020176,2]
[356732662,1743064240831,-1044.45041835,0.00021072,3]
[356732663,1743064240840,-216.54445895,0.00021257,2]
[356732664,1743064240849,-160.0,0.00021445,2]
[356732665,1743064240859,-834.95724862,0.00021445,2]
[356732666,1743064240868,-810.73987658,0.000218,2]
[356732667,1743064240878,-1044.45041835,0.00021969,3]
[356732668,1743064240887,-156.210119,0.00022072,4]
[356732669,1743064240897,-1000.0,0.00022351,2]
[356732670,1743064240907,-1000.0,0.00022351,2]
[356732671,1743064240917,-216.54445895,0.00022438,2]
[356732672,1743064240927,-1113.44906021,0.00022568,2]
[356732673,1743064240937,-1000.0,0.00022568,2]
[356732675,1743064240947,-1000.0,0.0002267,2]
[356732676,1743064240957,-500.0,0.0002267,2]
[356732677,1743064240966,-1000.0,0.0002267,2]
[356732678,1743064240976,-1111.10257296,0.0002267,2]
[356732679,1743064240985,-1000.0,0.0002267,2]
[356732680,1743064240996,-600.0,0.00022836,2]
[356732681,1743064241012,-156.210119,0.00022848,4]
[356732682,1743064241021,-1044.45041835,0.00022866,4]
[356732683,1743064241031,-470.52097046,0.00022887,2]
[356732684,1743064241047,-70.47902954,0.00022887,2]
[356732685,1743064241057,-150.0,0.00022887,2]
[356732686,1743064241067,-632.62793589,0.00022887,2]
[356732717,1743065180761,5000.0,0.00012,3]
[356732718,1743065191605,5000.0,0.00012,3]
[356732719,1743065199508,5000.0,0.00012,3]
[356732720,1743065207717,5000.0,0.00012,3]
[356732722,1743065216017,5000.0,0.00012,3]
[356732723,1743065227780,-180.192473,0.00010849,2]
[356732724,1743065233930,-180.192473,0.00010849,2]
[356732725,1743065236126,-180.192473,0.00010959,2]
[356732726,1743065236149,-192.0,0.00022,10]
[356732727,1743065236175,-500.0,0.00022595,2]
[356732728,1743065236196,-199.0,0.000228,2]
[356732729,1743065236217,-4537.44385814,0.000229,2]
[356732758,1743065432720,-606.84252089,0.00022171,3]
[356732759,1743065432733,-2007.73760735,0.00022171,3]
[356732760,1743065432776,-2385.41987176,0.00022171,3]
[356732761,1743065432785,-250.0,0.00022395,2]
[356732762,1743065432795,-181.11108068,0.000229,2]
[356732797,1743065440684,-2842.44506118,0.000229,2]
[356732798,1743065440693,-696.97127681,0.000229,4]
[356732799,1743065440703,-300.0,0.00023101,2]
[356732800,1743065440712,-436.03926534,0.00023102,2]
[356732801,1743065440722,-350.0,0.00023102,2]
[356732802,1743065440732,-500.0,0.00023102,2]
[356732803,1743065440741,-556.28402256,0.00023102,2]
[356732804,1743065440751,-500.0,0.00023102,2]
[356732806,1743065440760,-500.0,0.00023102,2]
[356732807,1743065440769,-500.0,0.00023102,2]
[356732808,1743065440779,-500.0,0.00023102,2]
[356732809,1743065440788,-500.0,0.00023102,2]
[356732811,1743065440939,-500.0,0.00023102,2]
[356732812,1743065440952,-500.0,0.00023102,2]
[356732813,1743065440963,-500.0,0.00023102,2]
[356732814,1743065440973,-535.89142375,0.00023102,2]
[356732815,1743065440983,-19582.3542483,0.00023103,2]
[356732816,1743065440994,-834.95724862,0.0002338,2]
[356732817,1743065441003,-500.0,0.00023435,2]
[356732818,1743065441013,-696.97127678,0.00023486,4]
[356732819,1743065441022,-214.988,0.00023676,2]
[356732820,1743065441032,-537.99035104,0.00023676,2]
[356732821,1743065441044,-1725.00964896,0.00023676,2]
[356732822,1743065441054,-967.70408824,0.00023676,2]
[356732823,1743065441066,-946.29591176,0.00023676,2]
[356732824,1743065441076,-5000.0,0.00023676,2]
[356732825,1743065441086,-183.70674758,0.00023762,4]
[356732826,1743065441096,-500.0,0.00024,2]
[356732827,1743065441106,-1000.0,0.00024,24]
[356732828,1743065441115,-696.97127678,0.00024072,5]
[356732829,1743065441125,-587.1323249,0.00024152,2]
[356732830,1743065441134,-500.0,0.0002425,30]
[356732831,1743065441143,-500.0,0.0002425,30]
[356732832,1743065441155,-500.0,0.0002425,30]
[356732833,1743065441166,-409.93466298,0.0002425,30]
[356732834,1743065441175,-163.56932786,0.00024419,5]
[356732835,1743065441185,-696.97127678,0.00024659,5]
[356732836,1743065441195,-418.47884548,0.00024671,2]
[356732837,1743065441206,-1820.71829848,0.000247,2]
[356732838,1743065441215,-500.0,0.00024773,2]
[356732839,1743065441226,-634.55,0.0002479,3]
[356732840,1743065441237,-317.27,0.0002479,3]
[356732841,1743065441246,-158.64,0.0002479,3]
[356732842,1743065441256,-475.92,0.0002479,3]
[356732843,1743065441265,-557.53,0.0002479,3]
[356732844,1743065441274,-500.0,0.00024799,2]
[356732845,1743065441284,-486.26185877,0.00024799,2]
[356732846,1743065441293,-190.5204679,0.000248,2]
[356732847,1743065441302,-8020.95504842,0.000248,2]
[356732848,1743065441327,-3895.31858396,0.00022671,3]
[356732849,1743065441336,-107439.65774941,0.000248,2]
[356732850,1743065441347,-949.75236137,0.000248,2]
[356732883,1743065446603,-324.89803351,0.000248,2]
[356732885,1743065446656,-803.07277939,0.000248,2]
[356732886,1743066006611,5000.0,0.00012,3]
[356732887,1743066014778,1962.14893596,0.00012,3]
[356732888,1743066074361,10000.0,0.00025,120]
[356732889,1743066612284,800.0,0.00014,30]
[356732907,1743066631922,-180.010983,0.00010959,2]
[356732908,1743066631931,-359.01628293,0.00010959,2]
[356732910,1743066631941,-180.010983,0.00013699,2]
[356732912,1743066631951,-180.010983,0.00016438,2]
[356732913,1743066631960,-250.0,0.00017924,2]
[356732914,1743066631970,-2373.2510812,0.00018197,2]
[356732915,1743066631980,-163.56932785,0.00018564,2]
[356732916,1743066631990,-633.54201987,0.00019135,2]
[356732917,1743066632000,-180.010983,0.00019178,2]
[356732918,1743066632009,-152.0,0.00019224,2]
[356732919,1743066632019,-300.0,0.00019234,2]
[356732920,1743066632028,-1991.92932161,0.00019235,2]
[356732921,1743066632037,-500.0,0.00019235,2]
[356732922,1743066632047,-1991.92932161,0.00019235,2]
[356732923,1743066632056,-1991.92932161,0.00019235,2]
[356732924,1743066632066,-555.57881319,0.00019235,2]
[356732925,1743066632075,-1991.92932161,0.00019235,2]
[356732926,1743066632085,-500.0,0.00019235,2]
[356732927,1743066632096,-1991.92932161,0.00019235,2]
[356732928,1743066632106,-500.0,0.00019235,2]
[356732929,1743066632115,-1991.92932161,0.00019235,2]
[356732930,1743066632125,-500.0,0.00019235,2]
[356732931,1743066632135,-1991.92932161,0.00019235,2]
[356732932,1743066632144,-500.0,0.00019235,2]
[356732933,1743066632153,-1991.92932161,0.00019235,2]
[356732934,1743066632163,-1991.92932161,0.00019235,2]
[356732935,1743066632173,-500.0,0.00019235,2]
[356732936,1743066632182,-1991.92932161,0.00019235,2]
[356732937,1743066632192,-1991.92932161,0.00019235,2]
[356732938,1743066632201,-500.0,0.00019235,2]
[356732939,1743066632210,-1991.92932161,0.00019235,2]
[356732940,1743066632220,-500.0,0.00019235,2]
[356732941,1743066632229,-1991.92932161,0.00019235,2]
[356732942,1743066632238,-1991.92932161,0.00019235,2]
[356732943,1743066632248,-340.65928552,0.00019235,2]
[356732944,1743066632257,-500.0,0.00019235,2]
[356732945,1743066632267,-1991.92932161,0.00019235,2]
[356732946,1743066632276,-500.0,0.00019235,2]
[356732947,1743066632286,-1991.92932161,0.00019235,2]
[356732948,1743066632295,-1991.92932161,0.00019235,2]
[356732949,1743066632305,-500.0,0.00019235,2]
[356732950,1743066632313,-1991.92932161,0.00019235,2]
[356732951,1743066632323,-1991.92932161,0.00019235,2]
[356732952,1743066632332,-1991.92932161,0.00019235,2]
[356732953,1743066632342,-1750.05178427,0.00019235,2]
[356732954,1743066632371,-241.87753734,0.00019235,2]
[356732955,1743066632380,-1991.92932161,0.00019235,2]
[356732956,1743066632389,-1991.92932161,0.00019235,2]
[356732957,1743066632399,-1991.92932161,0.00019235,2]
[356732958,1743066632409,-1991.92932161,0.00019235,2]
[356732959,1743066632418,-1991.92932161,0.00019235,2]
[356732960,1743066632428,-1991.92932161,0.00019235,2]
[356732961,1743066632437,-880.74305272,0.00019235,2]
[356732976,1743066637902,-1111.18626889,0.00019235,2]
[356732977,1743066637912,-1175.11046406,0.00019235,2]
[356732978,1743066637924,-816.81885755,0.00019235,2]
[356732979,1743066637934,-1991.92932161,0.00019235,2]
[356732980,1743066637943,-1436.97355435,0.00019235,2]
[356732981,1743066637955,-337.90960781,0.00019235,2]
[356732998,1743066640159,-217.04615945,0.00019235,2]
[356732999,1743066640168,-222.71826796,0.00019235,2]
[356733013,1743066643004,-1769.21105365,0.00019235,2]
[356733014,1743066643014,-1991.92932161,0.00019235,2]
[356733015,1743066643024,-238.85962224,0.00019235,2]
[356733016,1743066643058,-1753.06969937,0.00019235,2]
[356733017,1743066643067,-1991.92932161,0.00019235,2]
[356733018,1743066643077,-1991.92932161,0.00019235,2]
[356733019,1743066643086,-1991.92932161,0.00019235,2]
[356733020,1743066643096,-1991.92932161,0.00019235,2]
[356733021,1743066643106,-1991.92932161,0.00019235,2]
[356733022,1743066643115,-1991.92932161,0.00019235,2]